bitfinex/quotes_ETHUSD_20241004
["timestamp","ask_amount","ask_price","bid_price","bid_amount"]
[1728052504757,0.8248,2363.1,2362.8,4.23215]
[1728052505110,2.48435252,2363.4,2363.0,4.23181]
[1728052505258,0.7662,2363.4,2362.8,4.23216]
[1728052505454,2.47485252,2363.3,2362.0,0.772]
[1728052505761,2.47485252,2363.3,2362.3,4.23299]
[1728052505762,2.47485252,2363.2,2362.3,4.23299]
[1728052506054,2.47485252,2363.2,2362.1,4.23338]
[1728052506055,1.71815252,2363.1,2362.2,4.23331]
[1728052506256,0.7596,2363.0,2362.0,0.772]
[1728052506461,0.7596,2363.0,2362.0,8.46717]
[1728052506462,0.7596,2362.8,2362.0,8.46717]
[1728052506689,0.7596,2362.8,2362.1,4.2334]
[1728052507356,0.7596,2362.8,2362.2,4.23321]
[1728052507896,0.7596,2362.8,2361.9,7.23375]
[1728052508110,0.7596,2362.8,2362.0,4.23369]
[1728052508257,0.27255278,2362.7,2362.0,4.23369]
[1728052508454,0.27255278,2362.7,2362.1,4.23342]
[1728052508652,0.27255278,2362.7,2362.0,4.23362]
[1728052509056,0.27255278,2362.7,2362.0,4.23359]
[1728052509259,0.27255278,2362.7,2361.9,3.0]
[1728052509260,0.7596,2362.8,2362.4,4.23282]
[1728052509560,0.7596,2362.8,2362.2,4.23323]
[1728052509924,0.7596,2362.8,2361.9,3.0]
[1728052510082,0.7678,2363.2,2362.9,4.23196]
[1728052510265,0.7678,2363.2,2362.8,4.23218]
[1728052510468,0.7678,2363.2,2362.6,4.23254]
[1728052510469,2.48595252,2363.2,2362.6,4.23254]
[1728052510860,2.48595252,2363.2,2362.7,4.23243]
[1728052511265,2.48595252,2363.2,2362.8,4.23224]
[1728052511471,0.7678,2363.2,2362.5,4.23267]
[1728052511673,0.7678,2363.2,2362.0,0.7517]
[1728052511674,0.8323,2363.1,2362.0,0.7517]
[1728052511916,0.8323,2362.8,2361.9,4.23373]
[1728052512091,2.55045252,2362.8,2362.3,4.23306]
[1728052512423,2.55045252,2362.8,2362.4,4.2329]
[1728052512424,0.8323,2362.8,2362.4,4.2329]
[1728052512565,0.8323,2362.8,2362.6,4.23262]
[1728052512907,0.7602,2363.0,2362.6,4.23253]
[1728052513779,0.7602,2363.0,2362.4,4.23282]
[1728052513979,0.7602,2363.0,2362.3,4.23299]
[1728052515003,0.7602,2363.0,2362.2,4.23331]
[1728052515167,0.7602,2363.0,2361.7,0.7606]
[1728052515168,1.71815252,2362.9,2361.7,0.7606]
[1728052515369,5.49105252,2362.7,2361.9,4.23387]
[1728052515612,1.71815252,2362.6,2361.9,4.23387]
[1728052515822,0.54910525,2362.5,2361.9,4.23387]
[1728052515985,0.54910525,2362.5,2362.0,4.23365]
[1728052516370,5.49105252,2362.7,2362.1,4.23348]
[1728052516601,0.7729,2362.7,2362.2,4.2333]
[1728052516769,0.7729,2362.7,2362.2,8.46655]
[1728052516971,0.7729,2362.7,2362.2,4.23325]
[1728052517180,0.7729,2362.7,2362.0,5.03819]
[1728052517527,0.7729,2362.7,2362.4,4.23295]
[1728052517745,0.7729,2362.7,2361.9,3.0]
[1728052517919,0.7729,2362.7,2362.2,4.23324]
[1728052518225,0.7729,2362.7,2361.9,7.23373]
[1728052518526,0.7729,2362.7,2361.7,0.7768]
[1728052518527,0.7729,2362.7,2362.0,4.23361]
[1728052518695,1.23842531,2362.7,2362.0,4.23361]
[1728052518906,1.23842531,2362.7,2362.1,4.23349]
[1728052519809,1.23842531,2362.7,2362.1,4.23337]
[1728052520000,0.7729,2362.7,2362.5,4.23266]
[1728052520420,0.7506,2363.0,2362.3,0.755]
[1728052520686,0.7506,2363.3,2363.1,4.23162]
[1728052520931,1.71815252,2363.5,2362.7,4.96575164]
[1728052521083,2.67021794,2363.9,2362.5,3.55]
[1728052521084,1.71815252,2363.8,2363.5,4.23084]
[1728052521291,2.50885252,2364.2,2363.7,4.23065]
[1728052521596,0.7907,2364.2,2363.7,4.23055]
[1728052521786,0.7907,2364.2,2363.5,8.4619]
[1728052521985,0.7907,2364.2,2363.5,8.46182]
[1728052522205,0.7907,2364.2,2363.5,4.2309]
[1728052522386,0.7907,2364.2,2363.9,4.23023]
[1728052522610,0.66354269,2364.3,2363.9,4.23023]
[1728052523018,0.66354269,2364.3,2363.5,4.96575164]
[1728052523211,0.7938,2364.5,2364.1,4.22992]
[1728052523411,0.7938,2364.5,2364.2,4.22973]
[1728052524236,0.7683621,2364.8,2364.3,4.22957]
[1728052524384,0.7683621,2364.8,2364.2,4.22965]
[1728052524590,0.7683621,2364.8,2364.3,4.22941]
[1728052525055,0.7683621,2364.8,2364.1,8.45964]
[1728052525267,0.7683621,2364.8,2364.1,4.22981]
[1728052525419,0.7683621,2364.8,2364.1,8.45963]
[1728052525617,0.7683621,2364.8,2364.1,8.45957]
[1728052525818,0.7683621,2364.8,2364.2,4.22974]
[1728052526051,0.7683621,2364.8,2364.3,4.22948]
[1728052526248,0.0103621,2364.8,2364.4,9.19502164]
[1728052526415,0.0103621,2364.8,2364.6,4.22894]
[1728052526617,0.0103621,2364.8,2364.4,9.19502164]
[1728052526980,0.0103621,2364.8,2364.4,13.42433164]
[1728052527119,0.0103621,2364.8,2364.6,4.22892]
[1728052527323,0.0103621,2364.8,2364.5,4.2292]
[1728052527621,0.0103621,2364.8,2364.1,4.22981]
[1728052527959,0.8221,2364.7,2363.9,4.23028]
[1728052528132,0.8221,2364.7,2363.9,0.8143]
[1728052528327,0.8221,2364.7,2364.4,4.22928]
[1728052528525,0.0103621,2364.8,2364.1,4.96575164]
[1728052528526,0.0103621,2364.8,2364.5,4.22912]
[1728052528738,0.0103621,2364.8,2364.6,4.22894]
[1728052528922,0.0103621,2364.8,2364.4,4.22926]
[1728052529458,0.0103621,2364.8,2364.4,4.22938]
[1728052530288,0.0103621,2364.8,2364.3,4.22941]
[1728052530568,0.0103621,2364.8,2364.2,4.22975]
[1728052530724,0.0103621,2364.8,2364.3,4.22957]
[1728052531367,0.8155,2364.7,2363.7,4.23052]
[1728052531728,0.8155,2364.7,2363.7,4.23051]
[1728052531947,0.07537453,2364.6,2363.7,8.46106]
[1728052532155,0.8155,2364.5,2363.5,5.05699]
[1728052532462,0.8155,2364.5,2363.1,4.23161]
[1728052532463,0.8313,2364.4,2363.4,4.2311]
[1728052532673,0.8313,2364.4,2363.3,4.23124]
[1728052532674,0.8313,2364.2,2363.3,4.23124]
[1728052532822,0.8313,2364.2,2363.5,4.23098]
[1728052533027,0.07514992,2364.1,2363.5,4.23098]
[1728052533269,0.07514992,2364.1,2363.6,4.23083]
[1728052533480,0.07514992,2364.1,2363.2,4.96575164]
[1728052533626,0.07514992,2364.1,2363.3,8.46249]
[1728052533941,0.8313,2364.2,2363.3,8.46249]
[1728052534123,0.07519504,2364.0,2363.3,8.46249]
[1728052534464,0.8313,2364.2,2363.5,4.23093]
[1728052534663,0.07533597,2364.1,2363.8,4.23037]
[1728052534870,0.8313,2364.2,2362.9,9.19767164]
[1728052535032,0.8313,2364.2,2363.2,3.0]
[1728052535225,0.8313,2364.2,2363.0,7.2319]
[1728052535428,0.7826,2364.0,2363.0,3.0]
[1728052535681,0.7826,2364.0,2363.2,8.46287]
[1728052535682,0.07467406,2363.9,2363.2,8.46287]
[1728052535843,0.07467406,2363.9,2363.0,7.23178]
[1728052536162,0.07467406,2363.9,2363.0,3.0]
[1728052536375,0.07467406,2363.9,2363.4,4.23105]
[1728052536735,0.07467406,2363.9,2363.2,4.23153]
[1728052536955,0.07467406,2363.9,2362.7,3.0]
[1728052536956,0.8124,2363.8,2362.7,3.0]
[1728052537266,0.88692375,2363.8,2363.3,4.23122]
[1728052537577,0.07452375,2363.8,2363.6,4.23068]
[1728052537882,0.7733,2364.1,2363.5,4.23088]
[1728052538052,0.07461383,2363.7,2363.5,4.23088]
[1728052538252,0.7733,2364.1,2363.5,4.23088]
[1728052538445,0.07503671,2364.0,2363.6,4.23078]
[1728052538642,0.07503671,2364.0,2363.5,4.23088]
[1728052538643,0.7733,2364.1,2363.5,4.23088]
[1728052538836,0.07462258,2364.0,2363.4,4.23117]
[1728052539067,0.07462258,2364.0,2363.3,4.23126]
[1728052539261,0.07462258,2364.0,2363.6,4.23066]
[1728052539464,0.7733,2364.1,2363.7,4.23057]
[1728052540185,0.7733,2364.1,2363.5,4.23093]
[1728052540377,0.7733,2364.1,2363.6,4.23079]
[1728052540578,0.07514609,2364.0,2363.6,4.23079]
[1728052540739,0.7733,2364.1,2363.6,4.23079]
[1728052540946,0.7733,2364.1,2363.7,4.23058]
[1728052541140,0.7733,2364.1,2363.6,8.46148]
[1728052541455,0.7733,2364.1,2363.3,4.78136]
[1728052541643,0.7733,2364.1,2363.8,4.2303]
[1728052541838,0.7733,2364.1,2363.5,0.8318]
[1728052541839,0.7825,2364.4,2363.9,4.23015]
[1728052542045,0.07511567,2364.3,2364.0,4.22999]
[1728052542845,0.07511567,2364.3,2364.1,4.22985]
[1728052543184,0.7825,2364.4,2363.9,4.23012]
[1728052543344,0.8197,2364.7,2364.4,4.22932]
[1728052543546,0.8197,2364.7,2364.5,4.22921]
[1728052543746,0.0103621,2364.8,2364.6,4.22904]
[1728052543953,0.0103621,2364.8,2364.6,4.22896]
[1728052544294,0.0103621,2364.8,2364.7,4.22886]
[1728052544449,0.0103621,2364.8,2364.6,4.229]
[1728052544645,0.0103621,2364.8,2364.7,4.22886]
[1728052545995,0.0103621,2364.8,2364.4,4.22924]
[1728052546165,0.0103621,2364.8,2364.2,4.22962]
[1728052546368,0.0103621,2364.8,2364.4,4.22929]
[1728052546369,0.775,2364.7,2364.4,4.22929]
[1728052546566,0.0103621,2364.8,2364.5,4.22913]
[1728052546898,0.0103621,2364.8,2364.7,4.22886]
[1728052547097,0.0103621,2364.8,2364.0,3.7653]
[1728052547251,0.0103621,2364.8,2364.3,4.22946]
[1728052547663,0.0103621,2364.8,2364.5,4.22922]
[1728052547867,0.0103621,2364.8,2364.3,4.22946]
[1728052547868,0.0103621,2364.8,2364.4,4.22931]
[1728052548103,0.0103621,2364.8,2364.4,4.2293]
[1728052548401,0.0103621,2364.8,2364.5,4.22919]
[1728052548608,0.0103621,2364.8,2364.6,4.22903]
[1728052549413,0.0103621,2364.8,2364.7,0.04403502]
[1728052549567,0.0103621,2364.8,2364.5,4.2292]
[1728052549768,0.0103621,2364.8,2364.5,4.22918]
[1728052549972,0.0103621,2364.8,2364.5,4.22913]
[1728052550480,0.0103621,2364.8,2364.5,4.22911]
[1728052550680,0.0103621,2364.8,2364.6,4.22895]
[1728052551414,0.0103621,2364.8,2364.7,4.22886]
[1728052551765,0.0103621,2364.8,2364.7,4.2516002]
[1728052553085,0.0103621,2364.8,2364.7,4.22886]
[1728052553399,0.0103621,2364.8,2364.2,4.22965]
[1728052553400,0.8247,2364.7,2364.2,4.22965]
[1728052553710,0.8247,2364.7,2364.5,4.22922]
[1728052553885,0.0103621,2364.8,2364.7,4.22886]
[1728052558772,0.0103621,2364.8,2364.4,4.22924]
[1728052559019,0.7623,2364.7,2364.0,3.0]
[1728052559175,0.7623,2364.7,2364.5,4.2292]
[1728052559375,0.7623,2364.7,2364.5,4.22913]
[1728052559672,0.7623,2364.7,2364.5,4.22909]
[1728052559879,0.7623,2364.7,2364.1,4.2299]
[1728052559880,0.0103621,2364.8,2364.6,4.22904]
[1728052560191,0.0103621,2364.8,2364.6,4.22897]
[1728052560590,0.0103621,2364.8,2364.2,0.7856]
[1728052560894,0.0103621,2364.8,2364.0,3.0]
[1728052560895,0.7724,2364.7,2364.3,4.2295]
[1728052561102,0.7724,2364.7,2364.4,4.22938]
[1728052561421,0.7724,2364.7,2363.4,0.7991]
[1728052561624,0.7855,2364.6,2363.7,4.23055]
[1728052561792,0.86007621,2364.6,2363.4,0.7991]
[1728052561990,0.86007621,2364.6,2363.9,4.23029]
[1728052562325,0.07457621,2364.6,2364.3,4.2294]
[1728052562478,0.0103621,2364.8,2364.5,4.22922]
[1728052562685,0.0103621,2364.8,2364.0,0.7991]
[1728052562686,0.07389749,2364.7,2364.0,0.7991]
[1728052562914,0.0103621,2364.8,2364.5,4.2291]
[1728052563089,0.07372994,2364.6,2364.5,8.4582]
[1728052563293,0.0103621,2364.8,2364.3,4.22944]
[1728052563490,0.07364794,2364.6,2364.1,4.22979]
[1728052563691,0.0103621,2364.8,2364.1,4.22979]
[1728052563905,0.0103621,2364.8,2363.7,3.7765]
[1728052563906,0.07371735,2364.5,2363.7,3.7765]
[1728052564128,0.0103621,2364.8,2363.7,8.00712]
[1728052564129,0.8221,2364.4,2363.7,8.00712]
[1728052564285,0.89615195,2364.4,2363.7,4.23062]
[1728052564487,0.89615195,2364.4,2363.8,4.23037]
[1728052564826,0.89615195,2364.4,2364.0,4.23004]
[1728052565386,0.89615195,2364.4,2364.0,4.22997]
[1728052565617,0.89615195,2364.4,2364.1,4.22992]
[1728052566208,0.8221,2364.4,2364.1,4.22992]
[1728052566392,0.8221,2364.4,2364.1,4.22979]
[1728052566602,0.06848936,2364.3,2364.1,4.22979]
[1728052566909,0.06848936,2364.3,2363.5,3.0]
[1728052566910,0.06848936,2364.3,2363.4,0.8221]
[1728052567115,0.7965,2364.2,2363.2,0.832]
[1728052567315,0.86407437,2364.2,2363.4,4.23105]
[1728052567631,0.86407437,2364.2,2363.2,4.23145]
[1728052567844,0.86407437,2364.2,2363.1,4.23169]
[1728052567988,0.86407437,2364.2,2363.2,8.46293]
[1728052567989,3.06757437,2364.2,2363.2,8.46293]
[1728052568295,0.7805,2364.0,2363.0,4.23177]
[1728052568503,0.7805,2364.0,2363.3,8.46269]
[1728052568749,0.90154169,2364.1,2363.3,8.46269]
[1728052568750,2.02726756,2364.5,2364.4,4.2294]
[1728052569030,0.0103621,2364.8,2364.7,4.22886]
[1728052569236,0.0103621,2364.8,2364.7,12.74461164]
[1728052570038,0.0103621,2364.8,2364.7,7.22886]
[1728052571038,0.0103621,2364.8,2364.7,4.22886]
[1728052571326,0.0103621,2364.8,2364.7,4.77886]
[1728052571930,0.0103621,2364.8,2364.7,9.74461164]
[1728052572233,0.0103621,2364.8,2364.7,12.74461164]
[1728052573882,0.0103621,2364.8,2364.7,12.19461164]
[1728052574070,0.0103621,2364.8,2364.7,9.19461164]
[1728052577149,0.0103621,2364.8,2364.7,9.74461164]
[1728052577487,0.0103621,2364.8,2364.7,12.74461164]
[1728052577834,9.91539214,2366.6,2365.8,4.22689]
[1728052577835,0.809,2365.9,2365.8,4.22689]
[1728052578335,0.809,2366.2,2365.7,4.22704]
[1728052578638,0.809,2366.2,2366.1,4.22636]
[1728052578791,0.809,2366.2,2366.1,4.27808629]
[1728052579707,0.7874,2366.7,2366.1,4.27808629]
[1728052579943,0.04814338,2366.6,2366.1,4.27808629]
[1728052580150,0.7874,2366.5,2366.1,4.22631]
[1728052580464,0.04786214,2366.4,2366.0,4.22654]
[1728052580809,0.04786214,2366.4,2365.9,4.22658]
[1728052581060,0.04786214,2366.4,2366.1,4.22635]
[1728052581841,0.7874,2366.5,2366.1,4.22635]
[1728052582212,0.04802584,2366.4,2366.1,4.22625]
[1728052582550,0.04802584,2366.4,2366.2,4.25661222]
[1728052582850,0.04802584,2366.4,2366.0,4.22652]
[1728052583018,0.04802584,2366.4,2365.9,4.22658]
[1728052583220,0.8151,2366.3,2365.6,4.22723]
[1728052583530,0.04802584,2366.4,2365.3,4.22767]
[1728052583531,0.8151,2366.1,2365.3,4.22767]
[1728052583851,8.45186,2366.4,2365.3,4.22767]
[1728052583852,0.8151,2365.9,2365.3,4.22767]
[1728052584202,0.04721377,2365.8,2365.7,4.22707]
[1728052584402,0.71004136,2365.8,2365.7,4.22707]
[1728052584625,0.1184697,2367.2,2366.3,4.226]
[1728052584960,0.83543646,2367.1,2366.5,4.96575164]
[1728052585108,0.83543646,2367.1,2366.9,4.2249]
[1728052585310,0.7912,2367.1,2367.0,0.0311165]
[1728052585504,0.7912,2367.1,2366.9,0.03111673]
[1728052586249,0.1184697,2367.2,2366.8,0.03341195]
[1728052586412,0.1184697,2367.2,2366.9,0.04234525]
[1728052586612,0.04262625,2367.1,2366.9,4.22492]
[1728052586842,0.87242625,2367.1,2366.9,4.22492]
[1728052587045,0.8298,2367.1,2366.8,4.22499]
[1728052587245,0.8298,2367.1,2367.0,4.22475]
[1728052587456,0.1184697,2367.2,2367.0,4.22475]
[1728052587803,0.04235356,2367.1,2367.0,4.22475]
[1728052588042,0.04235356,2367.1,2366.3,0.7526]
[1728052588043,0.04235356,2367.1,2366.7,4.22513]
[1728052588423,0.04235356,2367.1,2366.7,8.45032]
[1728052588620,0.04235356,2367.1,2366.7,4.22513]
[1728052588821,0.04235356,2367.1,2366.6,4.22532]
[1728052589068,0.04235356,2367.1,2367.0,4.22475]
[1728052589291,0.1184697,2367.2,2366.6,9.19121164]
[1728052589503,0.1184697,2367.2,2366.9,4.22479]
[1728052589793,0.04266679,2367.1,2367.0,4.22465]
[1728052589967,0.1184697,2367.2,2366.9,4.22493]
[1728052590294,0.04331385,2367.1,2366.3,5.71835164]
[1728052590453,0.04331385,2367.1,2367.0,4.22475]
[1728052590653,0.1184697,2367.2,2366.8,4.22502]
[1728052590889,0.1184697,2367.2,2366.4,4.77581]
[1728052591097,0.1184697,2367.2,2367.1,4.22457]
[1728052591603,0.1184697,2367.2,2367.1,4.77457]
[1728052591757,0.1184697,2367.2,2367.1,4.22457]
[1728052591964,0.1184697,2367.2,2367.1,4.77457]
[1728052595911,0.66242968,2368.2,2367.6,4.22362]
[1728052596109,0.66242968,2368.2,2367.4,4.22404]
[1728052596110,0.66242968,2368.2,2368.1,4.22279]
[1728052596311,0.66242968,2368.2,2368.0,4.22297]
[1728052596536,0.66242968,2368.2,2367.8,4.22323]
[1728052596744,0.66242968,2368.2,2367.7,4.22341]
[1728052597027,0.66242968,2368.2,2367.5,0.55]
[1728052597335,0.8331,2368.1,2367.7,3.0]
[1728052597738,0.8331,2368.1,2367.7,7.22335]
[1728052597937,0.8331,2368.1,2367.5,3.0]
[1728052598153,0.8331,2368.1,2367.6,4.22355]
[1728052598434,0.8331,2368.1,2367.8,4.22323]
[1728052598636,0.8331,2368.1,2367.9,4.22307]
[1728052598836,0.8331,2368.1,2368.0,4.22297]
[1728052599052,0.66242968,2368.2,2368.1,4.22279]
[1728052599739,0.8253,2368.4,2368.2,4.2226]
[1728052600282,0.8253,2368.4,2368.1,4.2227]
[1728052600408,0.8253,2368.4,2368.3,4.22243]
[1728052600611,0.7584,2368.9,2368.3,4.22243]
[1728052600937,0.37584,2368.8,2368.3,4.22243]
[1728052601110,0.7584,2368.9,2368.3,4.22233]
[1728052601637,0.7584,2368.9,2368.3,4.22232]
[1728052601843,0.7584,2368.9,2368.4,4.22217]
[1728052602143,0.7584,2368.9,2368.6,4.22179]
[1728052602309,0.8201,2369.3,2368.7,4.2217]
[1728052602507,0.81301,2369.2,2368.7,4.2217]
[1728052602816,0.81301,2369.2,2368.4,8.44426]
[1728052603017,0.81301,2369.2,2368.5,4.22205]
[1728052603357,0.81301,2369.2,2368.4,4.22208]
[1728052603358,0.81301,2369.2,2368.6,4.22189]
[1728052603655,0.8201,2369.3,2368.5,4.222]
[1728052603811,3.0,2369.2,2368.3,4.22234]
[1728052604049,8.04082,2369.3,2368.3,4.22233]
[1728052604253,5.01848,2369.1,2368.1,5.04526]
[1728052604451,0.7974,2369.1,2368.3,4.22235]
[1728052604653,0.501837,2369.0,2368.4,4.22217]
[1728052604866,0.7974,2369.1,2368.4,4.22217]
[1728052605295,0.7974,2369.1,2367.7,0.8098]
[1728052605296,4.22175,2368.7,2367.7,0.8098]
[1728052605455,0.8122,2368.9,2367.6,4.2236]
[1728052605657,0.8122,2368.5,2367.6,4.22359]
[1728052605868,0.503421,2368.4,2367.6,4.22359]
[1728052606267,0.503421,2368.4,2367.3,4.22421]
[1728052606268,0.8089,2368.3,2367.3,4.22419]
[1728052606499,0.7942,2368.2,2367.1,5.74295164]
[1728052606700,0.7942,2368.2,2367.5,4.22376]
[1728052607305,0.7942,2368.2,2367.4,8.44779]
[1728052607521,5.01696,2368.2,2367.2,4.2243]
[1728052607836,4.99374,2367.9,2366.8,4.22506]
[1728052608027,4.99413,2367.7,2366.6,4.22533]
[1728052608226,0.7705,2367.7,2366.5,4.96575164]
[1728052608369,0.7705,2367.7,2366.9,4.22489]
[1728052608706,0.7705,2367.7,2366.7,4.22518]
[1728052608907,0.7705,2367.7,2366.8,4.22499]
[1728052609204,0.7705,2367.7,2366.4,0.7767]
[1728052609205,0.7983,2367.5,2366.4,0.7767]
[1728052609429,0.7983,2367.5,2366.0,1.31145476]
[1728052609430,4.96575164,2367.0,2366.0,1.31145476]
[1728052609719,0.7983,2366.7,2366.0,1.31145476]
[1728052610084,3.7983,2366.5,2366.0,1.31145476]
[1728052610598,0.7983,2366.5,2366.0,1.31145476]
[1728052612010,3.0,2366.4,2366.0,1.31145476]
[1728052613281,3.7983,2366.5,2366.0,1.31145476]
[1728052613604,0.802378,2366.4,2366.0,1.31145476]
[1728052613977,0.7983,2366.5,2366.0,1.31145476]
[1728052614167,0.7983,2366.5,2366.0,5.53796476]
[1728052614389,0.7983,2366.5,2366.0,1.31145476]
[1728052614591,0.7983,2366.5,2366.2,4.22617]
[1728052614805,0.7619,2366.8,2366.0,1.31145476]
[1728052615071,0.7619,2366.8,2366.1,9.32678317]
[1728052615269,5.72765164,2366.2,2366.1,0.87430317]
[1728052615493,6.3004168,2366.2,2365.4,4.22753]
[1728052615729,6.3004168,2366.2,2365.3,4.22763]
[1728052616331,1.33466516,2366.2,2365.3,4.22763]
[1728052616533,0.7619,2366.2,2365.6,4.22723]
[1728052616893,0.7619,2366.2,2365.7,4.22706]
[1728052617194,0.7619,2366.2,2365.6,4.22716]
[1728052617429,0.7619,2366.2,2365.6,4.22714]
[1728052617634,4.22485,2367.0,2365.9,4.22669]
[1728052617931,4.22485,2367.0,2365.9,8.45329]
[1728052617932,0.7691,2366.8,2365.9,8.45329]
[1728052618128,0.7691,2366.8,2366.0,4.22641]
[1728052618433,0.7691,2366.8,2365.8,8.45351]
[1728052618649,0.54365734,2366.7,2365.9,4.22668]
[1728052618928,0.54365734,2366.7,2366.1,4.22634]
[1728052619092,0.7691,2366.8,2365.9,8.45328]
[1728052619292,4.2253,2366.7,2365.7,5.03558]
[1728052619490,3.7691,2366.8,2365.7,5.03556]
[1728052619737,3.7691,2366.8,2365.8,4.22678]
[1728052619934,0.7691,2366.8,2366.0,4.22653]
[1728052620096,1.61273634,2366.8,2366.0,4.22653]
[1728052620293,1.61273634,2366.8,2365.7,0.8086]
[1728052620294,0.7691,2366.8,2365.7,0.8086]
[1728052620600,0.7691,2366.8,2365.8,4.22674]
[1728052620945,0.7691,2366.8,2365.9,4.2267]
[1728052621237,0.7691,2366.8,2365.8,4.22674]
[1728052621238,0.7576,2366.6,2365.8,4.22674]
[1728052621639,0.7576,2366.6,2365.6,4.22711]
[1728052621640,4.22566,2366.5,2365.6,4.22711]
[1728052621807,0.498326,2366.4,2365.7,4.22699]
[1728052622218,0.767,2366.3,2365.6,4.22714]
[1728052622721,0.767,2366.3,2365.5,7.22741]
[1728052623228,0.767,2366.3,2365.6,4.22724]
[1728052623656,0.767,2366.3,2365.5,3.0]
[1728052623794,0.767,2366.3,2365.0,5.01488]
[1728052623795,4.22667,2366.0,2365.0,5.01488]
[1728052623997,4.99449,2365.9,2365.0,4.22818]
[1728052624408,4.99449,2365.9,2364.8,4.22863]
[1728052624605,0.8192,2365.8,2364.9,4.2285]
[1728052624943,0.8192,2365.8,2365.3,8.45539]
[1728052625144,0.8192,2365.8,2365.4,4.22747]
[1728052625309,0.44255598,2365.7,2365.4,4.22747]
[1728052625521,0.44255598,2365.7,2365.5,4.22736]
[1728052625997,0.44255598,2365.7,2365.5,4.22734]
[1728052626199,0.44255598,2365.7,2365.3,4.22765]
[1728052626744,0.44255598,2365.7,2365.4,4.22752]
[1728052627063,0.44255598,2365.7,2365.2,4.22782]
[1728052627263,0.44255598,2365.7,2365.6,4.22725]
[1728052627750,0.44255598,2365.7,2365.4,4.22755]
[1728052627907,0.44255598,2365.7,2365.6,4.22725]
[1728052628910,0.44255598,2365.7,2365.6,7.77725]
[1728052629304,0.7957,2366.4,2366.3,4.226]
[1728052629608,0.44250861,2366.2,2365.6,4.22715]
[1728052629810,0.44250861,2366.2,2365.8,4.22689]
[1728052630118,0.44250861,2366.2,2365.8,4.22681]
[1728052630319,0.44250861,2366.2,2366.1,4.22636]
[1728052634834,0.44250861,2366.2,2366.0,4.22644]
[1728052635380,0.44250861,2366.2,2366.1,4.22636]
[1728052635882,0.44250861,2366.2,2365.8,4.22689]
[1728052636050,0.8304,2366.1,2365.9,4.22664]
[1728052636374,0.8304,2366.1,2365.7,3.0]
[1728052636583,0.8304,2366.1,2365.8,4.22679]
[1728052636738,0.8304,2366.1,2365.7,11.4541]
[1728052636935,0.8304,2366.1,2365.8,4.22674]
[1728052637338,0.8304,2366.1,2365.9,4.2266]
[1728052637575,0.8304,2366.1,2365.6,4.22712]
[1728052637778,0.8304,2366.1,2365.1,0.8192]
[1728052638021,0.7981,2366.0,2365.2,4.22789]
[1728052638166,0.7981,2366.0,2365.0,4.22821]
[1728052638167,0.7981,2365.8,2365.0,4.22821]
[1728052638370,4.22699,2365.8,2364.9,4.22848]
[1728052638543,0.76,2365.4,2364.8,4.22866]
[1728052638740,0.76,2365.4,2364.7,4.22874]
[1728052638978,0.76,2365.4,2364.9,4.22849]
[1728052639145,0.76,2365.4,2364.7,4.22874]
[1728052639474,0.76,2365.4,2364.9,8.45691]
[1728052639677,0.76,2365.4,2364.8,0.7889]
[1728052639846,0.76,2365.4,2365.3,4.22779]
[1728052640267,0.8003,2365.1,2363.7,0.7889]
[1728052640488,9.43987864,2365.4,2363.8,4.2303]
[1728052640489,0.8003,2364.7,2363.8,4.2303]
[1728052640784,0.8003,2364.7,2363.7,5.01942]
[1728052640785,4.22905,2364.6,2363.7,5.01942]
[1728052641008,5.01042,2364.5,2363.5,4.23083]
[1728052641286,0.7812,2364.3,2363.5,4.23101]
[1728052641482,0.7812,2364.3,2363.6,4.23081]
[1728052642141,5.01089,2364.3,2363.2,4.23144]
[1728052642447,0.7812,2364.3,2363.4,4.23109]
[1728052642648,5.01082,2364.3,2363.4,4.23109]
[1728052642848,0.9741382,2364.2,2363.4,4.23109]
[1728052643059,0.9741382,2364.2,2363.3,4.23135]
[1728052643393,5.01082,2364.3,2363.6,0.7734]
[1728052643394,0.7812,2364.3,2363.6,0.7734]
[1728052643598,0.7812,2364.3,2363.7,4.23054]
[1728052643756,0.7812,2364.3,2363.5,4.23088]
[1728052644084,4.22976,2364.2,2363.3,4.23126]
[1728052644310,0.7665,2364.1,2363.4,3.0]
[1728052644490,1.266126,2364.1,2363.5,4.23087]
[1728052644708,0.7665,2364.1,2363.5,8.46176]
[1728052644984,0.44265707,2364.0,2363.6,4.23079]
[1728052645182,0.44265707,2364.0,2363.5,4.23087]
[1728052645629,0.44265707,2364.0,2363.5,8.46179]
[1728052645772,0.44265707,2364.0,2363.5,4.23087]
[1728052646101,0.44265707,2364.0,2363.6,4.23076]
[1728052646406,0.44265707,2364.0,2363.8,4.23034]
[1728052646705,0.44265707,2364.0,2363.9,4.23029]
[1728052647008,0.44265707,2364.0,2363.8,8.46071]
[1728052647306,0.44265707,2364.0,2363.9,4.23029]
[1728052648281,0.44265707,2364.0,2363.9,7.23029]
[1728052650770,0.44265707,2364.0,2363.9,4.23029]
[1728052651204,0.44265707,2364.0,2363.6,3.0]
[1728052651205,0.44265707,2364.0,2363.8,4.23037]
[1728052651375,0.44265707,2364.0,2363.9,4.23029]
[1728052652573,0.44265707,2364.0,2363.9,8.59809]
[1728052652989,0.7522,2364.7,2364.1,4.22993]
[1728052653204,0.7522,2364.6,2363.2,0.8178]
[1728052653395,0.7743,2364.0,2363.5,4.23088]
[1728052653592,0.7743,2364.0,2363.4,4.23106]
[1728052653795,1.21696409,2364.0,2363.7,4.23054]
[1728052653995,1.21696409,2364.0,2363.8,4.23038]
[1728052654920,1.21696409,2364.0,2363.6,4.23075]
[1728052655082,1.21696409,2364.0,2363.7,4.23064]
[1728052655283,1.21696409,2364.0,2363.8,4.23036]
[1728052655578,1.21696409,2364.0,2363.9,4.23029]